fUSD/lending_fUSD_20260407
["ID","MTS","AMOUNT","RATE_DAILY","PERIOD"]
[419971735,1775575839579,-662.0,0.00013585,2]
[419971736,1775575839588,-662.0,0.00013585,2]
[419971737,1775575839599,-662.0,0.00013585,2]
[419971738,1775575839610,-500.0,0.00013585,2]
[419971739,1775575839620,-662.0,0.00013585,2]
[419971740,1775575839629,-500.01643822,0.00013585,2]
[419971741,1775575839639,-662.0,0.00013585,2]
[419971742,1775575839649,-546.0,0.00013585,2]
[419971743,1775575839658,-662.0,0.00013585,2]
[419971744,1775575839668,-662.0,0.00013585,2]
[419971745,1775575839678,-662.0,0.00013585,2]
[419971746,1775575839688,-662.0,0.00013585,2]
[419971747,1775575839698,-662.0,0.00013585,2]
[419971748,1775575839708,-662.0,0.00013585,2]
[419971749,1775575839718,-662.0,0.00013585,2]
[419971750,1775575839728,-662.0,0.00013585,2]
[419971751,1775575839737,-662.0,0.00013585,2]
[419971752,1775575839746,-662.0,0.00013585,2]
[419971753,1775575839755,-662.0,0.00013585,2]
[419971754,1775575839765,-662.0,0.00013585,2]
[419971755,1775575839774,-673.39070252,0.00013585,2]
[419971756,1775575839784,-249.62,0.00013585,2]
[419971757,1775575839794,-500.0,0.00013585,2]
[419971758,1775575839804,-414.12404802,0.00013585,2]
[419971759,1775575839815,-150.0,0.00013585,2]
[419971760,1775575839824,-153.24085071,0.00013585,2]
[419971761,1775575839833,-500.0,0.00013585,2]
[419971762,1775575839843,-500.0,0.00013585,2]
[419971763,1775575839853,-500.0,0.00013585,2]
[419971764,1775575839862,-266.52915409,0.00013585,2]
[419971765,1775575839872,-500.0,0.00013585,2]
[419971766,1775575839881,-500.0,0.00013585,2]
[419971767,1775575839891,-500.0,0.00013585,2]
[419971768,1775575839900,-500.0,0.00013585,2]
[419971769,1775575839910,-500.0,0.00013585,2]
[419971770,1775575839919,-500.0,0.00013585,2]
[419971771,1775575839928,-500.0,0.00013585,2]
[419971772,1775575839938,-524.8115188,0.00013585,2]
[419971773,1775575839947,-500.0,0.00013585,2]
[419971774,1775575839956,-500.0,0.00013585,2]
[419971775,1775575839965,-500.0,0.00013585,2]
[419971776,1775575839975,-500.0,0.00013585,2]
[419971777,1775575839985,-500.0,0.00013585,2]
[419971778,1775575839995,-500.0,0.00013585,2]
[419971779,1775575840004,-500.0,0.00013585,2]
[419971780,1775575840014,-232.18984881,0.00013585,2]
[419971781,1775575840023,-500.0,0.00013585,2]
[419971782,1775575840033,-500.0,0.00013585,2]
[419971783,1775575840042,-500.0,0.00013585,2]
[419971784,1775575840052,-500.0,0.00013585,2]
[419971785,1775575840061,-500.0,0.00013585,2]
[419971786,1775575840070,-500.0,0.00013585,2]
[419971787,1775575840080,-500.0,0.00013585,2]
[419971788,1775575840089,-500.0,0.00013585,2]
[419971789,1775575840099,-500.0,0.00013585,2]
[419971790,1775575840108,-500.0,0.00013585,2]
[419971791,1775575840117,-499.0702747,0.00013585,2]
[419971792,1775575840128,-500.0,0.00013585,2]
[419971793,1775575840137,-500.0,0.00013585,2]
[419971794,1775575840146,-500.0,0.00013585,2]
[419971795,1775575840156,-150.0,0.00013585,2]
[419971796,1775575840165,-570.30165745,0.00013585,2]
[419971797,1775575840173,-150.0,0.00013585,2]
[419971798,1775575840182,-500.0,0.00013585,2]
[419971799,1775575840192,-150.0,0.00013585,2]
[419971800,1775575840201,-500.0,0.00013585,2]
[419971801,1775575840211,-150.0,0.00013585,2]
[419971802,1775575840221,-500.0,0.00013585,2]
[419971803,1775575840233,-289.89258684,0.00013585,2]
[419971804,1775575840242,-500.0,0.00013585,2]
[419971805,1775575840251,-500.0,0.00013585,2]
[419971806,1775575840261,-500.0,0.00013585,2]
[419971807,1775575840271,-500.0,0.00013585,2]
[419971808,1775575840280,-500.0,0.00013585,2]
[419971809,1775575840290,-329.41546349,0.00013585,2]
[419971810,1775575840299,-500.0,0.00013585,2]
[419971811,1775575840309,-500.0,0.00013585,2]
[419971812,1775575840318,-500.0,0.00013585,2]
[419971813,1775575840328,-500.0,0.00013585,2]
[419971814,1775575840336,-500.0,0.00013585,2]
[419971815,1775575840345,-500.0,0.00013585,2]
[419971816,1775575840355,-500.0,0.00013585,2]
[419971817,1775575840366,-500.0,0.00013585,2]
[419971818,1775575840377,-500.0,0.00013585,2]
[419971819,1775575840387,-500.0,0.00013585,2]
[419971820,1775575840398,-500.0,0.00013585,2]
[419971821,1775575840408,-379.35266898,0.00013585,2]
[419971822,1775575840418,-500.0,0.00013585,2]
[419971823,1775575840429,-500.0,0.00013585,2]
[419971824,1775575840439,-500.0,0.00013585,2]
[419971825,1775575840448,-500.0,0.00013585,2]
[419971826,1775575840459,-150.0,0.00013585,2]
[419971827,1775575840469,-256.32549117,0.00013585,2]
[419971828,1775575840479,-360.01646101,0.00013585,2]
[419971829,1775575840489,-278.4,0.00013598,2]
[419971830,1775575840499,-1196.0,0.00013623,2]
[419971831,1775575840509,-500.0,0.0001363,2]
[419971832,1775575840519,-166.66,0.00013632,2]
[419971833,1775575840529,-694.28729381,0.00013634,2]
[419971834,1775575840540,-150.0,0.0001366,2]
[419971835,1775575840550,-316.82,0.00013699,2]
[419971836,1775575840560,-1551.39,0.00013699,2]
[419971837,1775575840570,-166.66,0.00013699,2]
[419971838,1775575840580,-200.0,0.00013699,2]
[419971839,1775575840590,-150.0,0.00013719,2]
[419971840,1775575840600,-150.0,0.00013719,2]
[419971841,1775575840611,-1827.0,0.00013724,2]
[419971842,1775575840621,-150.0,0.00013748,2]
[419971843,1775575840631,-1043.0,0.00013752,2]
[419971844,1775575840641,-1447.0,0.00013779,2]
[419971845,1775575840651,-947.0,0.00013807,2]
[419971846,1775575840660,-166.66,0.00013836,2]
[419971847,1775575840670,-150.0,0.00013837,2]
[419971848,1775575840680,-8758.72701063,0.00013844,2]
[419971849,1775575840690,-500.0,0.00013859,2]
[419971850,1775575840699,-500.0,0.00013859,2]
[419971851,1775575840710,-530.88186197,0.00013859,2]
[419971852,1775575840720,-500.0,0.00013859,2]
[419971853,1775575840731,-500.0,0.00013859,2]
[419971854,1775575840740,-500.0,0.00013859,2]
[419971855,1775575840750,-500.0,0.00013859,2]
[419971856,1775575840759,-500.0,0.00013859,2]
[419971857,1775575840769,-278.57606632,0.00013859,2]
[419971858,1775575840779,-150.0,0.00013859,2]
[419971859,1775575840789,-150.0,0.00013859,2]
[419971860,1775575840799,-150.0,0.00013859,2]
[419971861,1775575840808,-698.0,0.00013859,2]
[419971862,1775575840817,-150.0,0.00013859,2]
[419971863,1775575840827,-274.28711703,0.00013859,2]
[419971864,1775575840837,-698.0,0.00013859,2]
[419971865,1775575840847,-698.0,0.00013859,2]
[419971866,1775575840856,-698.0,0.00013859,2]
[419971867,1775575840865,-698.0,0.00013859,2]
[419971868,1775575840875,-500.0,0.00013859,2]
[419971869,1775575840885,-500.0,0.00013859,2]
[419971870,1775575840895,-500.0,0.00013859,2]
[419971871,1775575840905,-500.0,0.00013859,2]
[419971872,1775575840914,-500.0,0.00013859,2]
[419971873,1775575840924,-500.0,0.00013859,2]
[419971874,1775575840934,-500.0,0.00013859,2]
[419971875,1775575840944,-698.0,0.00013859,2]
[419971876,1775575840953,-594.20670319,0.00013859,2]
[419971877,1775575840962,-698.0,0.00013859,2]
[419971878,1775575840971,-698.0,0.00013859,2]
[419971879,1775575840981,-150.0,0.00013859,2]
[419971880,1775575840990,-698.0,0.00013859,2]
[419971881,1775575841000,-150.0,0.00013859,2]
[419971882,1775575841010,-698.0,0.00013859,2]
[419971883,1775575841019,-698.0,0.00013859,2]
[419971884,1775575841029,-150.0,0.00013859,2]
[419971885,1775575841039,-500.0,0.00013859,2]
[419971886,1775575841049,-698.0,0.00013859,2]
[419971887,1775575841059,-181.70252141,0.00013859,2]
[419971888,1775575841069,-516.75450482,0.00013859,2]
[419971889,1775575841078,-698.0,0.00013859,2]
[419971890,1775575841087,-698.0,0.00013859,2]
[419971891,1775575841096,-698.0,0.00013859,2]
[419971892,1775575841106,-698.0,0.00013859,2]
[419971893,1775575841116,-150.7184852,0.00013859,2]
[419971894,1775575841126,-500.0,0.00013859,2]
[419971895,1775575841135,-698.0,0.00013859,2]
[419971896,1775575841145,-500.0,0.00013859,2]
[419971897,1775575841154,-698.0,0.00013859,2]
[419971898,1775575841164,-500.0,0.00013859,2]
[419971899,1775575841174,-500.0,0.00013859,2]
[419971900,1775575841183,-698.0,0.00013859,2]
[419971901,1775575841193,-500.0,0.00013859,2]
[419971902,1775575841204,-642.81768611,0.00013859,2]
[419971903,1775575841214,-500.0,0.00013859,2]
[419971904,1775575841223,-698.0,0.00013859,2]
[419971905,1775575841234,-500.0,0.00013859,2]
[419971906,1775575841243,-500.0,0.00013859,2]
[419971907,1775575841253,-698.0,0.00013859,2]
[419971908,1775575841263,-500.0,0.00013859,2]
[419971909,1775575841273,-500.0,0.00013859,2]
[419971910,1775575841283,-698.0,0.00013859,2]
[419971911,1775575841293,-500.0,0.00013859,2]
[419971912,1775575841303,-345.22023393,0.00013859,2]
[419971913,1775575841313,-500.0,0.00013859,2]
[419971914,1775575841322,-698.0,0.00013859,2]
[419971915,1775575841332,-500.0,0.00013859,2]
[419971916,1775575841343,-714.22106888,0.00013859,2]
[419971917,1775575841353,-500.0,0.00013859,2]
[419971918,1775575841362,-408.98301836,0.00013859,2]
[419971919,1775575841372,-500.0,0.00013859,2]
[419971920,1775575841382,-500.0,0.00013859,2]
[419971921,1775575841391,-500.0,0.00013859,2]
[419971922,1775575841401,-500.0,0.00013859,2]
[419971923,1775575841411,-500.0,0.00013859,2]
[419971924,1775575841421,-500.0,0.00013859,2]
[419971925,1775575841431,-500.0,0.00013859,2]
[419971926,1775575841440,-500.0,0.00013859,2]
[419971927,1775575841450,-500.0,0.00013859,2]
[419971928,1775575841460,-500.0,0.00013859,2]
[419971929,1775575841470,-500.0,0.00013859,2]
[419971930,1775575841480,-500.0,0.00013859,2]
[419971931,1775575841490,-397.72162059,0.00013859,2]
[419971932,1775575841500,-188.64365037,0.00013859,2]
[419971933,1775575841510,-500.0,0.00013859,2]
[419971934,1775575841519,-337.97015847,0.00013859,2]
[419971935,1775575841528,-500.0,0.00013859,2]
[419971936,1775575841537,-500.0,0.00013859,2]
[419971937,1775575841546,-500.0,0.00013859,2]
[419971938,1775575841555,-385.20384257,0.00013859,2]
[419971939,1775575841564,-249.62,0.00013859,2]
[419971940,1775575841573,-500.0,0.00013899,2]
[419971941,1775575841583,-500.0,0.00013899,2]
[419971942,1775575841591,-500.0,0.00013899,2]
[419971943,1775575841600,-500.0,0.00013899,2]
[419971944,1775575841609,-571.50758087,0.00013899,2]
[419971945,1775575841618,-500.0,0.00013904,2]
[419971946,1775575841628,-200.0,0.00013904,2]
[419971947,1775575841637,-1243.57659104,0.00013904,2]
[419971948,1775575841648,-1000.0,0.00013921,2]
[419971949,1775575841657,-1000.0,0.00013921,2]
[419971950,1775575841667,-1000.0,0.00013921,2]
[419971951,1775575841677,-1000.0,0.00013921,2]
[419971952,1775575841687,-501.03587191,0.00013921,2]
[419971953,1775575841697,-500.0,0.00013921,2]
[419971954,1775575841707,-1000.0,0.00013921,2]
[419971955,1775575841717,-2000.0,0.00013924,2]
[419971956,1775575841727,-150.0,0.00013926,2]
[419971957,1775575841738,-224.66071133,0.00013934,2]
[419971958,1775575841748,-166.66,0.00013973,2]
[419971959,1775575841758,-694.28729381,0.00014011,2]
[419971960,1775575841768,-160.0,0.00014014,2]
[419971961,1775575841777,-524.067141,0.00014014,2]
[419971962,1775575841788,-888.134282,0.00014014,2]
[419971963,1775575841797,-160.0,0.00014014,7]
[419971964,1775575841808,-234.915765,0.00014014,7]
[419971965,1775575841817,-309.831531,0.00014014,7]
[419971966,1775575841827,-455.271605,0.00014014,7]
[419971967,1775575841837,-160.0,0.00014014,7]
[419971968,1775575841845,-582.386584,0.00014014,7]
[419971969,1775575841855,-1004.773168,0.00014014,7]
[419971970,1775575841864,-296.890866,0.00014014,7]
[419971971,1775575841874,-150.0,0.00014014,2]
[419971972,1775575841883,-1000.0,0.00014021,2]
[419971973,1775575841892,-500.0,0.00014033,2]
[419971974,1775575841901,-5000.0,0.00014034,2]
[419971975,1775575841910,-2500.0,0.00014034,2]
[419971976,1775575841919,-228.16520221,0.00014057,2]
[419971977,1775575841928,-166.66,0.00014067,2]
[419971978,1775575841938,-700.0,0.00014082,2]
[419971979,1775575841948,-1400.0,0.00014082,2]
[419971980,1775575841958,-150.0,0.00014103,2]
[419971981,1775575841968,-166.66,0.0001411,2]
[419971982,1775575841978,-623.58710448,0.00014111,2]
[419971983,1775575841987,-8260.13072239,0.00014111,2]
[419971984,1775575841996,-500.0,0.00014111,2]
[419971985,1775575842006,-1235.18214925,0.00014111,2]
[419971986,1775575842015,-174.61919141,0.00014111,2]
[419971987,1775575842024,-151.0,0.00014111,2]
[419971988,1775575842033,-798.52727141,0.00014111,2]
[419971989,1775575842043,-411.57624402,0.00014111,2]
[419971990,1775575842052,-151.0,0.00014131,2]
[419971991,1775575842062,-500.0,0.00014133,2]
[419971992,1775575842071,-500.0,0.00014133,2]
[419971993,1775575842081,-500.0,0.00014133,2]
[419971994,1775575842091,-513.19074398,0.00014133,2]
[419971995,1775575842100,-500.0,0.00014133,2]
[419971996,1775575842109,-300.73076034,0.00014133,2]
[419971997,1775575842119,-990.28,0.00014133,2]
[419971998,1775575842128,-990.28,0.00014133,2]
[419971999,1775575842137,-990.28,0.00014133,2]
[419972000,1775575842147,-990.28,0.00014133,2]
[419972001,1775575842156,-990.28,0.00014133,2]
[419972002,1775575842166,-990.28,0.00014133,2]
[419972003,1775575842176,-990.28,0.00014133,2]
[419972004,1775575842185,-990.28,0.00014133,2]
[419972005,1775575842194,-990.28,0.00014133,2]
[419972006,1775575842204,-990.28,0.00014133,2]
[419972007,1775575842214,-249.64,0.00014133,2]
[419972008,1775575842224,-500.0,0.00014133,2]
[419972009,1775575842234,-500.0,0.00014133,2]
[419972010,1775575842244,-500.0,0.00014133,2]
[419972011,1775575842253,-391.39016199,0.00014133,2]
[419972012,1775575842263,-8758.72701063,0.00014137,2]
[419972013,1775575842272,-4638.35391231,0.00014166,2]
[419972014,1775575842282,-500.0,0.00014166,2]
[419972015,1775575842292,-151.0,0.00014166,2]
[419972016,1775575842301,-500.0,0.00014173,2]
[419972017,1775575842311,-500.0,0.00014173,2]
[419972018,1775575842320,-199.90943792,0.00014173,2]
[419972019,1775575842329,-500.0,0.00014173,2]
[419972020,1775575842339,-500.0,0.00014178,2]
[419972021,1775575842348,-501.0,0.00014179,2]
[419972022,1775575842358,-150.0,0.00014192,2]
[419972023,1775575842366,-150.0,0.00014192,2]
[419972024,1775575842376,-150.0,0.00014192,2]
[419972025,1775575842385,-183.75838561,0.00014192,2]
[419972026,1775575842394,-150.0,0.00014192,2]
[419972027,1775575842404,-342831.58,0.000142,2]
[419972028,1775575842413,-5000.0,0.00014245,2]
[419972029,1775575842423,-2500.0,0.00014245,2]
[419972030,1775575842433,-2500.0,0.00014245,2]
[419972031,1775575842442,-2500.0,0.00014245,2]
[419972032,1775575842451,-500.0,0.00014245,2]
[419972033,1775575842461,-500.0,0.00014245,2]
[419972034,1775575842470,-500.0,0.00014245,2]
[419972035,1775575842479,-500.0,0.00014245,2]
[419972036,1775575842488,-500.0,0.00014245,2]
[419972037,1775575842498,-300.0,0.00014245,2]
[419972038,1775575842507,-300.0,0.00014245,2]
[419972039,1775575842515,-300.0,0.00014245,2]
[419972040,1775575842525,-356.43990232,0.00014245,2]
[419972041,1775575842534,-2500.0,0.00014245,2]
[419972042,1775575842544,-2500.0,0.00014245,2]
[419972043,1775575842554,-5000.0,0.00014245,2]
[419972044,1775575842564,-300.0,0.00014245,2]
[419972045,1775575842575,-250.0,0.00014245,2]
[419972046,1775575842584,-166.66,0.00014247,2]
[419972047,1775575842596,-150.0,0.0001425,2]
[419972048,1775575842605,-205.00212077,0.0001425,2]
[419972049,1775575842615,-2632.34465391,0.0001425,2]
[419972050,1775575842626,-200.0,0.0001425,2]
[419972051,1775575842635,-990.28,0.00014299,2]
[419972054,1775575842645,-500.0,0.00014356,2]
[419972057,1775575842655,-228.16520217,0.00014364,2]
[419972059,1775575842664,-316.82,0.00014384,2]
[419972061,1775575842675,-166.66,0.00014384,2]
[419972063,1775575842684,-694.28729381,0.00014389,2]
[419972065,1775575842695,-152.0,0.00014406,5]
[419972067,1775575842704,-160.0,0.00014426,2]
[419972069,1775575842714,-1578.566846,0.00014426,2]
[419972071,1775575842724,-2997.133692,0.00014426,2]
[419972072,1775575842733,-255.0,0.0001443,2]
[419972073,1775575842743,-8758.72701063,0.00014431,2]
[419972074,1775575842753,-500.0,0.00014452,2]
[419972075,1775575842763,-281.30510653,0.00014452,2]
[419972076,1775575842774,-1500.0,0.00014468,2]
[419972077,1775575842784,-1680.0,0.00014488,2]
[419972078,1775575842795,-166.66,0.00014503,2]
[419972080,1775575842805,-420.0,0.00014533,2]
[419972082,1775575842814,-1500.0,0.00014568,2]
[419972084,1775575842824,-785.92,0.00014578,2]
[419972086,1775575842834,-166.9643,0.000146,2]
[419972088,1775575842843,-1280.88388878,0.00014659,2]
[419972090,1775575842853,-181.08010149,0.00014659,2]
[419972092,1775575842864,-228.16520217,0.00014671,2]
[419972094,1775575842873,-1071.955515,0.00014715,2]
[419972096,1775575842883,-320.33968,0.00014715,7]
[419972098,1775575842893,-206.941638,0.00014715,7]
[419972100,1775575842903,-794.163523,0.00014715,7]
[419972102,1775575842912,-2812.0,0.0001472,2]
[419972104,1775575842923,-2079.0,0.0001472,2]
[419972106,1775575842932,-1573.0,0.0001472,2]
[419972108,1775575842940,-1000.0,0.00014721,2]
[419972109,1775575842950,-1000.0,0.00014721,2]
[419972110,1775575842960,-503.19697935,0.00014721,2]
[419972111,1775575842969,-8758.72701063,0.00014725,2]
[419972112,1775575842978,-500.0,0.00014726,2]
[419972113,1775575842988,-694.28729381,0.00014767,2]
[419972114,1775575842998,-2000.0,0.0001478,2]
[419972115,1775575843006,-3524.0,0.00014781,2]
[419972116,1775575843016,-1050.137,0.00014781,2]
[419972117,1775575843027,-250.0,0.00014795,2]
[419972118,1775575843037,-990.28,0.00014799,2]
[419972119,1775575843047,-150.0,0.0001485,2]
[419972120,1775575843057,-785.92,0.00014852,2]
[419972121,1775575843067,-152.09808365,0.00014873,2]
[419972122,1775575843077,-150.0,0.000149,2]
[419972123,1775575843087,-907.1565,0.000149,2]
[419972124,1775575843097,-278.4,0.00014925,2]
[419972125,1775575843110,-166.66,0.00014938,2]
[419972126,1775575843119,-228.16520217,0.00014979,2]
[419972127,1775575843128,-500.0,0.00014999,2]
[419972128,1775575843138,-500.0,0.00014999,2]
[419972129,1775575843148,-500.0,0.00014999,2]
[419972130,1775575843158,-500.0,0.00014999,2]
[419972131,1775575843168,-500.0,0.00015,2]
[419972132,1775575843179,-870.0,0.00015,2]
[419972133,1775575843190,-150.0,0.00015,2]
[419972134,1775575843200,-2097.0,0.00015,5]
[419972135,1775575843210,-8758.72701063,0.00015019,2]
[419972136,1775575843219,-4615.917,0.00015068,2]
[419972137,1775575843230,-243.354,0.00015068,2]
[419972138,1775575843240,-316.82,0.00015068,2]
[419972139,1775575843251,-493.54914906,0.00015068,2]
[419972140,1775575843262,-1264.0,0.00015086,2]
[419972141,1775575843273,-1217.0,0.00015086,2]
[419972142,1775575843284,-2000.0,0.00015116,2]
[419972143,1775575843295,-209.92,0.00015126,2]
[419972144,1775575843305,-694.28729381,0.00015145,2]
[419972145,1775575843316,-2152.591153,0.00015147,2]
[419972146,1775575843326,-150.0,0.00015178,2]
[419972147,1775575843337,-1795.81862833,0.0001518,2]
[419972155,1775575843712,-1328.27659266,0.00015207,2]
[419972156,1775575843722,-238.34784917,0.00015207,2]
[419972157,1775575843733,-440.06141909,0.0001525,2]
[419972158,1775575843744,-501.0,0.00015258,3]
[419972159,1775575843765,-391.29868191,0.00015268,2]
[419972160,1775575843776,-1500.0,0.00015268,2]
[419972161,1775575843787,-500.0,0.00015274,2]
[419972162,1775575843798,-228.16520217,0.00015286,2]
[419972163,1775575843808,-150.0,0.0001531,2]
[419972164,1775575843819,-8758.72701063,0.00015312,2]
[419972165,1775575843828,-350.0,0.00015324,2]
[419972166,1775575843838,-700.0,0.00015329,4]
[419972167,1775575843848,-2557.0,0.00015348,2]
[419972168,1775575843857,-162.0,0.0001536,2]
[419972169,1775575843869,-166.66,0.00015374,2]
[419972170,1775575843879,-8425.49894113,0.00015374,2]
[419972171,1775575843889,-871.95012592,0.0001538,2]
[419972172,1775575843900,-700.0,0.00015452,2]
[419972173,1775575843910,-1400.0,0.00015452,2]
[419972174,1775575843920,-2000.0,0.00015471,2]
[419972175,1775575843931,-2644.95,0.00015471,2]
[419972176,1775575843941,-937.35,0.00015471,2]
[419972177,1775575843952,-3284.3,0.00015471,2]
[419972178,1775575843962,-9393.83,0.00015471,2]
[419972179,1775575843972,-1129.7,0.00015471,2]
[419972180,1775575843982,-286.56433231,0.00015473,2]
[419972181,1775575843993,-500.0,0.00015473,2]
[419972182,1775575844004,-500.0,0.00015473,2]
[419972183,1775575844015,-500.0,0.00015473,2]
[419972184,1775575844025,-474.57359568,0.00015473,2]
[419972185,1775575844036,-244.01107124,0.00015473,2]
[419972186,1775575844046,-500.0,0.00015473,2]
[419972187,1775575844057,-561.33456625,0.00015473,2]
[419972188,1775575844068,-164.39680661,0.00015473,2]
[419972189,1775575844079,-500.0,0.00015473,2]
[419972190,1775575844089,-503.7652055,0.00015473,2]
[419972191,1775575844099,-150.0,0.00015475,2]
[419972192,1775575844109,-232.00571695,0.00015475,2]
[419972193,1775575844119,-163.4,0.00015485,2]
[419972194,1775575844129,-1345.02743546,0.0001549,2]
[419972195,1775575844138,-342831.58,0.000155,2]
[419972196,1775575844147,-151.0,0.000155,2]
[419972197,1775575844156,-151.0,0.000155,2]
[419972198,1775575844166,-151.0,0.000155,2]
[419972199,1775575844177,-151.0,0.000155,2]
[419972200,1775575844186,-151.0,0.000155,2]
[419972201,1775575844197,-151.0,0.000155,2]
[419972202,1775575844207,-151.0,0.000155,2]
[419972203,1775575844218,-151.0,0.000155,2]
[419972204,1775575844229,-293.036116,0.000155,2]
[419972205,1775575844238,-151.0,0.000155,2]
[419972206,1775575844249,-153.102386,0.000155,2]
[419972207,1775575844259,-151.0,0.000155,2]
[419972208,1775575844268,-151.322902,0.000155,2]
[419972209,1775575844279,-151.0,0.000155,2]
[419972210,1775575844289,-151.0,0.000155,2]
[419972211,1775575844298,-151.0,0.000155,2]
[419972212,1775575844309,-151.0,0.000155,2]
[419972213,1775575844319,-151.0,0.000155,2]
[419972214,1775575844329,-151.0,0.000155,2]
[419972215,1775575844340,-151.0,0.000155,2]
[419972216,1775575844349,-151.0,0.000155,2]
[419972217,1775575844360,-151.0,0.000155,2]
[419972218,1775575844370,-151.0,0.000155,2]
[419972219,1775575844381,-151.743295,0.000155,2]
[419972220,1775575844392,-151.0,0.000155,2]
[419972221,1775575844403,-218.132708,0.000155,2]
[419972222,1775575844413,-303.62306,0.000155,2]
[419972223,1775575844423,-303.62306,0.000155,2]
[419972224,1775575844433,-151.0,0.000155,2]
[419972225,1775575844443,-303.62306,0.000155,2]
[419972226,1775575844453,-303.62306,0.000155,2]
[419972227,1775575844463,-151.0,0.000155,2]
[419972228,1775575844474,-151.0,0.000155,2]
[419972229,1775575844484,-151.0,0.000155,2]
[419972230,1775575844494,-151.0,0.000155,2]
[419972231,1775575844504,-151.0,0.000155,2]
[419972232,1775575844514,-151.0,0.000155,2]
[419972233,1775575844525,-151.0,0.000155,2]
[419972234,1775575844535,-151.0,0.000155,2]
[419972235,1775575844545,-152.065096,0.000155,2]
[419972236,1775575844554,-151.0,0.000155,2]
[419972237,1775575844565,-151.0,0.000155,2]
[419972238,1775575844574,-151.0,0.000155,2]
[419972239,1775575844585,-151.0,0.000155,2]
[419972240,1775575844595,-151.0,0.000155,2]
[419972241,1775575844604,-151.0,0.000155,2]
[419972242,1775575844614,-151.0,0.000155,2]
[419972243,1775575844625,-151.0,0.000155,2]
[419972244,1775575844636,-232.189529,0.000155,2]
[419972245,1775575844646,-151.0,0.000155,2]
[419972246,1775575844656,-361.389933,0.000155,2]
[419972247,1775575844666,-151.0,0.000155,2]
[419972248,1775575844676,-361.389933,0.000155,2]
[419972249,1775575844687,-151.0,0.000155,2]
[419972250,1775575844697,-151.0,0.000155,2]
[419972251,1775575844707,-361.389933,0.000155,2]
[419972252,1775575844716,-151.0,0.000155,2]
[419972253,1775575844726,-361.389933,0.000155,2]
[419972254,1775575844736,-151.0,0.000155,2]
[419972255,1775575844746,-151.0,0.000155,2]
[419972256,1775575844756,-151.0,0.000155,2]
[419972257,1775575844772,-151.0,0.000155,2]
[419972258,1775575844782,-151.0,0.000155,2]
[419972259,1775575844792,-151.0,0.000155,2]
[419972260,1775575844802,-399.955189,0.000155,2]
[419972261,1775575844812,-399.955189,0.000155,2]
[419972262,1775575844821,-399.955189,0.000155,2]
[419972263,1775575844831,-151.0,0.000155,2]
[419972264,1775575844840,-399.955189,0.000155,2]
[419972265,1775575844850,-151.0,0.000155,2]
[419972266,1775575844861,-151.0,0.000155,2]
[419972267,1775575844871,-151.0,0.000155,2]